Cogmind - Beta 15 @@@ ROGUE MODE // 2025.08.14 @ 13:16:45 Player: JuustuToug Result: Destroyed by H-88 Terminator with KE Penetrator Performance ------------- Evolutions (9) 4500 Regions Visited (15) 3000 Robots Destroyed (42) 210 Value Destroyed (1031) 1031 Prototype IDs (66) 1320 Alien Tech Used (0) 0 Bonus (5600) 5600 TOTAL SCORE: 15661 Bonus ------- Aligned with FarCom 300 Met Imprinter 300 Met MAIN.C 5000 Cogmind --------- Core Integrity 0/1600 Matter 93/300 Energy 93/100 System Corruption 26% Temperature Cool (0) Movement Core (50) Location -1/Command Parts ------- > --- POWER (2) -------- (None) > --- PROPULSION (7) --- (None) > --- UTILITY (14) ----- Improved Transmission Jammer Improved Hacking Suite Advanced Hacking Suite Advanced Hacking Suite System Shield System Shield > --- WEAPON (2) ------- (None) > --- INVENTORY (5) ---- Light Neutrino Core Micro Antimatter Reactor Layered Medium Armor Plating Peak State ------------ > --- POWER ------------ Micro Antimatter Reactor Light Quantum Reactor > --- PROPULSION ------- Cooled VTOL Module Impulse Thruster Impulse Thruster Cooled Field Propulsion Drive Field Propulsion Array Improved Diametric Drive > --- UTILITY ---------- Advanced Power Amplifier Advanced Cooling System Small Storage Unit Structural Scanner Improved Transmission Jammer Improved Cloaking Device Layered Medium Armor Plating Improved Hacking Suite Advanced Hacking Suite Advanced Hacking Suite Advanced Hacking Suite System Shield System Shield System Shield > --- WEAPON ----------- Greatsword > --- INVENTORY -------- Light Neutrino Core Micro Antimatter Reactor Micro Antimatter Reactor Advanced Reaction Control System Layered Medium Armor Plating Layered Medium Armor Plating [Rating: 144] Favorites ----------- Power Light Deuterium Engine Engine Light Deuterium Engine Power Core Micro Fission Core Reactor Micro Antimatter Reactor Propulsion VTOL Module Leg Aluminum Leg Hover Unit Gyrokinetic Inverter Flight Unit VTOL Module Utility Hacking Suite Device Structural Scanner Storage Small Storage Unit Processor Spectral Analyzer Hackware Hacking Suite Protection Improved Light Armor Plating Weapon Greatsword Energy Gun Medium Laser Energy Cannon Ion Cannon Ballistic Gun Light Assault Rifle Slashing Weapon Greatsword Special Melee Weapon Datajack Build | -11 -10 -10 -10 -9 -8 -7 -7 -6 -5 -5 -4 -3 -2 -1 -1 ------- Run | Yrd Mat Min Exi Min Mat Fac Low Zio Pro Fac Fac Res Res Acc Com Slots Evolved 18 | . . . . . 4 2 . . . 4 2 2 2 2 . Power 1 | . . . . . . . . . . . . 1 . . . Propulsion 5 | . . . . . 2 1 . . . 1 . . . 1 . Utility 12 | . . . . . 2 1 . . . 3 2 1 2 1 . Weapon . | . . . . . . . . . . . . . . . . Parts Attached 81 | 6 5 1 1 . 33 3 . . . 7 8 8 1 6 2 Power 12 | 1 1 . . . 4 . . . . 2 1 1 . 1 1 Engine 6 | 1 1 . . . 3 . . . . 1 . . . . . Core 3 | . . . . . 1 . . . . 1 1 . . . . Reactor 3 | . . . . . . . . . . . . 1 . 1 1 Propulsion 24 | 2 . . . . 12 1 . . . 2 4 1 . 2 . Treads . | . . . . . . . . . . . . . . . . Leg 8 | 2 . . . . 6 . . . . . . . . . . Wheel . | . . . . . . . . . . . . . . . . Hover 2 | . . . . . . . . . . 2 . . . . . Flight 14 | . . . . . 6 1 . . . . 4 1 . 2 . Utility 31 | 1 2 . . . 11 1 . . . 3 3 6 1 2 1 Device 12 | . 1 . . . 5 . . . . . . 4 . 1 1 Storage 3 | 1 1 . . . 1 . . . . . . . . . . Processor 1 | . . . . . . . . . . . . . 1 . . Hackware 12 | . . . . . 3 1 . . . 3 3 1 . 1 . Protection 3 | . . . . . 2 . . . . . . 1 . . . Artifact . | . . . . . . . . . . . . . . . . Weapon 14 | 2 2 1 1 . 6 1 . . . . . . . 1 . Energy Gun 4 | 1 1 . . . 1 1 . . . . . . . . . Energy Cannon 5 | . . 1 . . 4 . . . . . . . . . . Ballistic Gun 2 | 1 1 . . . . . . . . . . . . . . Ballistic Cannon . | . . . . . . . . . . . . . . . . Launcher . | . . . . . . . . . . . . . . . . Special Weapon . | . . . . . . . . . . . . . . . . Impact Weapon . | . . . . . . . . . . . . . . . . Slashing Weapon 2 | . . . . . 1 . . . . . . . . 1 . Piercing Weapon . | . . . . . . . . . . . . . . . . Special Melee Weapon 1 | . . . 1 . . . . . . . . . . . . Unidentified Prototypes 6 | . . . . . 1 1 . . . . 1 2 1 . . Parts Lost 23 | . 2 1 . . 3 . . . 1 . . . . 3 13 Power 2 | . 1 . . . . . . . . . . . . . 1 Propulsion 10 | . . . . . 2 . . . 1 . . . . 2 5 Utility 7 | . . . . . 1 . . . . . . . . . 6 Weapon 4 | . 1 1 . . . . . . . . . . . 1 1 Highest Loss Streak 13 | . 2 1 . . 1 . . . 1 . . . . 2 13 To Critical Strikes . | . . . . . . . . . . . . . . . . Average Backups 7 | 1 4 9 9 10 8 6 7 7 7 6 6 6 5 5 5 Power . | . . . . . 1 1 1 1 1 1 1 . . 1 2 Propulsion 1 | . 1 4 3 3 1 . . . . . . . 2 . . Utility 2 | . . 3 3 3 2 3 4 4 4 3 4 4 2 2 2 Weapon 1 | . 1 1 2 2 2 1 2 2 2 2 1 1 1 . . Tool/Special . | . . . . . . . . . . . . . . . . Unused Backups 22 | . . . 1 . 10 4 . . . . 3 1 . . 3 Power 3 | . . . . . 1 1 . . . . . . . . 1 Propulsion 1 | . . . 1 . . . . . . . . . . . . Utility 10 | . . . . . 2 3 . . . . 2 1 . . 2 Weapon 7 | . . . . . 6 . . . . . 1 . . . . Tool/Special 1 | . . . . . 1 . . . . . . . . . . Average Slot Usage (%) 92 | . 97 100 100 100 93 90 92 92 90 91 91 89 90 91 57 Engine 5 | . 13 14 14 14 4 7 7 7 7 1 . . . . . Core 2 | . . . . . 3 . . . . 3 5 8 4 3 . Leg 11 | . 28 28 28 28 19 . . . . . . . . . . Hover 1 | . . . . . . . . . . 9 5 . . . . Flight 18 | . . . . . 16 37 38 38 36 23 23 23 21 23 10 Device 10 | . 11 14 14 14 14 7 7 7 7 5 5 8 16 16 13 Storage 8 | . 14 14 14 14 9 6 7 7 7 5 5 4 4 4 1 Hackware 18 | . . . . . 6 19 23 23 23 34 41 38 34 31 25 Protection 1 | . . . . . 4 2 . . . . . . . 3 . Energy Gun 1 | . 14 4 . . . . . . . . . . . . . Energy Cannon 3 | . . 9 14 14 9 . . . . . . . . . . Ballistic Gun 2 | . 14 14 4 14 . . . . . . . . . . . Slashing Weapon 3 | . . . . . 3 6 7 7 7 5 5 4 4 4 2 Special Melee Weapon 1 | . . . 9 . . . . . . . . . . . . Peak Build Rating 144 | 6 8 8 9 9 31 39 39 39 39 61 88 107 123 144 134 Average Rating 46 | 4 7 7 8 9 26 36 39 39 38 58 75 101 119 133 85 On Entrance 45 | . 6 8 8 9 9 31 39 39 39 36 61 88 107 119 134 Naked Turns . | . . . . . . . . . . . . . . . . Heaviest Build 49 | 13 19 18 18 18 39 19 16 16 16 16 19 32 31 49 41 Greatest Support 55 | 20 20 20 20 20 48 21 21 21 21 16 38 46 38 55 46 Greatest Overweight (x) 2 | 2 . . . . 1 . . . . . . . . . 2 Average Overweight (x) . | . . . . . . . . . . . . . . . . Largest Inventory Capacity 10 | 8 10 10 10 10 10 8 8 8 8 8 8 8 8 8 8 Average Capacity 8 | 7 9 10 10 10 9 7 8 8 8 8 8 8 8 8 6 Most Carried 10 | 3 10 10 10 10 10 8 8 8 8 8 8 8 7 8 8 Average Carried 7 | 1 4 9 9 10 8 7 7 8 8 7 7 7 6 6 5 Final Capacity 10 | 8 10 10 10 10 8 8 8 8 8 8 8 8 8 8 5 Final Carried 10 | 3 10 10 10 10 8 8 8 8 8 8 8 8 6 7 3 Class Distribution -------------------- 33% | Wizard-Sprinter 26% | Hacker-Sprinter 24% | Mutant 8% | Scavenger-Mutant 3% | Skirmisher Dominant Class ---------------- Mutant | -10/Materials Mutant | -10/Mines Mutant | -10/Exiles Skirmisher | -9/Mines Scavenger-Mutant | -8/Materials Hacker-Sprinter | -7/Factory Hacker-Sprinter | -7/Lower Caves Hacker-Sprinter | -6/Zion Hacker-Sprinter | -5/Proximity Caves Wizard-Sprinter | -5/Factory Wizard-Sprinter | -4/Factory Wizard-Sprinter | -3/Research Wizard-Sprinter | -2/Research Wizard-Sprinter | -1/Access Wizard-Mutant | -1/Command Resources | -11 -10 -10 -10 -9 -8 -7 -7 -6 -5 -5 -4 -3 -2 -1 -1 ----------- Run | Yrd Mat Min Exi Min Mat Fac Low Zio Pro Fac Fac Res Res Acc Com Matter Collected 1134 | 211 137 16 . . 445 71 59 . . 50 95 50 . . . Remotely . | . . . . . . . . . . . . . . . . Salvage Created 1676 | . 379 42 . . 778 101 . . . 129 175 35 37 . . Parts 95 | . 22 1 . . 39 9 . . . 8 13 2 1 . . Haulers Intercepted 7 | . 1 . . . 5 . . . . 1 . . . . . Recyclers Shooed 2 | . 1 . . . 1 . . . . . . . . . . Parts Field Recycled . | . . . . . . . . . . . . . . . . Retrieved Matter . | . . . . . . . . . . . . . . . . Parts Self-Destructed 2 | . . . . . . . . 1 1 . . . . . . Prevented . | . . . . . . . . . . . . . . . . Kills | -11 -10 -10 -10 -9 -8 -7 -7 -6 -5 -5 -4 -3 -2 -1 -1 ------- Run | Yrd Mat Min Exi Min Mat Fac Low Zio Pro Fac Fac Res Res Acc Com Combat Hostiles Destroyed 16 | . 8 1 . . 7 . . . . . . . . . . Guns 9 | . 8 1 . . . . . . . . . . . . . Cannons 7 | . . . . . 7 . . . . . . . . . . Classes Destroyed 9 | . 5 . . . 4 . . . . . . . . . . Hauler 7 | . 1 . . . 5 . . . . 1 . . . . . Recycler 2 | . . . . . 1 . . . . . 1 . . . . Operator 10 | . 2 . . . 2 2 . . . 1 2 1 . . . Watcher 7 | . 2 . . . 2 2 . . . . . . 1 . . Swarmer 3 | . 3 . . . . . . . . . . . . . . Grunt 8 | . 5 1 . . 2 . . . . . . . . . . Duelist 1 | . . . . . 1 . . . . . . . . . . Sentry 3 | . . . . . 3 . . . . . . . . . . Hunter 1 | . . . . . 1 . . . . . . . . . . Best Kill Streak 5 | . 5 1 . . 3 2 . . . 1 2 1 1 . . Combat Bots Only 3 | . 3 1 . . 2 . . . . . . . . . . Max Kills in Single Turn 1 | . 1 1 . . 1 1 . . . 1 1 1 1 . . Gunslinging . | . . . . . . . . . . . . . . . . Exploded . | . . . . . . . . . . . . . . . . Melee . | . . . . . . . . . . . . . . . . Uniques/NPCs Destroyed . | . . . . . . . . . . . . . . . . Combat | -11 -10 -10 -10 -9 -8 -7 -7 -6 -5 -5 -4 -3 -2 -1 -1 -------- Run | Yrd Mat Min Exi Min Mat Fac Low Zio Pro Fac Fac Res Res Acc Com Hostile Shots Fired 333 | . 54 15 . . 60 21 . . 10 2 14 13 6 25 113 Missed 160 | . 18 1 . . 29 14 . . 7 1 8 9 6 15 52 Hits 173 | . 36 14 . . 31 7 . . 3 1 6 4 . 10 61 Projectile 173 | . 36 14 . . 31 7 . . 3 1 6 4 . 10 61 AOE 2 | . . . . . . . . . . . . . . . 2 Critical Strikes 14 | . 1 . . . 4 . . . . . . . . . 9 Part Disruptions 7 | . . . . . . . . . . . . 1 . . 6 Damage Taken 4396 | . 417 164 . . 718 100 . . 52 19 149 128 . 226 2423 Core 1946 | . 61 33 . . 124 42 . . . 19 26 24 . 43 1574 Absorbed by Shields . | . . . . . . . . . . . . . . . . Regen/Repaired (Parts) 207 | . . . . . . 203 . 4 . . . . . . . Core Remaining (%) 90 | 100 . . . 62 77 . . . 94 98 97 98 100 . . Volleys Fired 100 | . 49 9 . . 42 . . . . . . . . . . Largest 2 | . 2 2 . . 2 . . . . . . . . . . Hottest 120 | . 70 80 . . 120 . . . . . . . . . . Shots Fired 196 | . 97 17 . . 82 . . . . . . . . . . Gun 111 | . 97 14 . . . . . . . . . . . . . Cannon 85 | . . 3 . . 82 . . . . . . . . . . Launcher . | . . . . . . . . . . . . . . . . Special . | . . . . . . . . . . . . . . . . Kinetic 58 | . 49 9 . . . . . . . . . . . . . Thermal 138 | . 48 8 . . 82 . . . . . . . . . . Explosive . | . . . . . . . . . . . . . . . . Electromagnetic . | . . . . . . . . . . . . . . . . Robot Hit Streak 14 | . 14 5 . . 8 . . . . . . . . . . Robot Miss Streak 5 | . 3 3 . . 5 . . . . . . . . . . Penetration Max . | . . . . . . . . . . . . . . . . Secondary Targets 2 | . 2 . . . . . . . . . . . . . . Max Gunslinging Chain 1 | . 1 . . . . . . . . . . . . . . Shots Hit Robots 168 | . 62 12 26 . 51 5 . . . 5 3 3 1 . . Core Hits 60 | . 29 5 . . 19 2 . . . 1 2 1 1 . . Critical Kills . | . . . . . . . . . . . . . . . . Critical Parts Destroyed 1 | . . 1 . . . . . . . . . . . . . Critical Strikes 7 | . 4 1 . . 2 . . . . . . . . . . Burn 4 | . 4 . . . . . . . . . . . . . . Destroy 1 | . . 1 . . . . . . . . . . . . . Sever 2 | . . . . . 2 . . . . . . . . . . Melee Attacks 124 | . . . 26 . 20 13 . 1 . 8 28 8 4 11 5 Impact . | . . . . . . . . . . . . . . . . Slashing 98 | . . . . . 20 13 . 1 . 8 28 8 4 11 5 Piercing . | . . . . . . . . . . . . . . . . Sneak Attacks 32 | . . . 24 . 4 . . . . 1 3 . . . . Combat Hostiles . | . . . . . . . . . . . . . . . . Follow-up Attacks . | . . . . . . . . . . . . . . . . Damage Inflicted 4065 | . 684 121 . . 1817 375 . . . 417 341 243 67 . . Guns 770 | . 684 86 . . . . . . . . . . . . . Cannons 1067 | . . 35 . . 1032 . . . . . . . . . . Explosions . | . . . . . . . . . . . . . . . . Melee 2228 | . . . . . 785 375 . . . 417 341 243 67 . . Ramming . | . . . . . . . . . . . . . . . . Kinetic 319 | . 277 42 . . . . . . . . . . . . . Thermal 1518 | . 407 79 . . 1032 . . . . . . . . . . Explosive . | . . . . . . . . . . . . . . . . Electromagnetic . | . . . . . . . . . . . . . . . . Impact . | . . . . . . . . . . . . . . . . Slashing 2228 | . . . . . 785 375 . . . 417 341 243 67 . . Piercing . | . . . . . . . . . . . . . . . . Highest Corruption 25 | . . . . . 4 . . . . . 2 1 4 2 25 Average Corruption 3 | . . . . . 4 . . . . . 2 1 4 1 11 Corruption Purged . | . . . . . . . . . . . . . . . . Corruption Blocked . | . . . . . . . . . . . . . . . . Effects 14 | . . . . . 2 . . . . . 6 . 1 1 4 Message Errors 5 | . . . . . 2 . . . . . 1 . 1 1 . Matter Fused 2 | . . . . . . . . . . . 1 . . . 1 Heat Flow Errors 2 | . . . . . . . . . . . 2 . . . . Energy Discharges 1 | . . . . . . . . . . . . . . . 1 Parts Rejected 1 | . . . . . . . . . . . . . . . 1 Data Loss (major) 1 | . . . . . . . . . . . 1 . . . . Alerts 1 | . . . . . . . . . . . 1 . . . . Misdirections 1 | . . . . . . . . . . . . . . . 1 Overload Shots . | . . . . . . . . . . . . . . . . Overflow Damage 607 | . . . . . 242 121 . . . 100 92 52 . . . Projectiles 10 | . . . . . 10 . . . . . . . . . . Explosions . | . . . . . . . . . . . . . . . . Melee 597 | . . . . . 232 121 . . . 100 92 52 . . . Knockbacks . | . . . . . . . . . . . . . . . . Impact . | . . . . . . . . . . . . . . . . Kinetic . | . . . . . . . . . . . . . . . . Secondary . | . . . . . . . . . . . . . . . . Self-Inflicted Damage . | . . . . . . . . . . . . . . . . Shots . | . . . . . . . . . . . . . . . . Rammed . | . . . . . . . . . . . . . . . . Targets Rammed . | . . . . . . . . . . . . . . . . Kicked . | . . . . . . . . . . . . . . . . Crushed . | . . . . . . . . . . . . . . . . Highest Temperature 302 | . 230 143 . . 224 21 1 1 1 . 204 302 . 138 . Average Temperature 44 | . 83 66 . . 53 4 1 1 1 . 93 128 . 67 . Received Heat Transfer 663 | . 180 93 . . 261 12 . . 9 . 27 . . 9 72 Siege Activations . | . . . . . . . . . . . . . . . . Martial Activations . | . . . . . . . . . . . . . . . . Shielding Activations . | . . . . . . . . . . . . . . . . Robots Disrupted . | . . . . . . . . . . . . . . . . Combat Hostiles . | . . . . . . . . . . . . . . . . Robots Corrupted . | . . . . . . . . . . . . . . . . Combat Hostiles . | . . . . . . . . . . . . . . . . Parts Fried . | . . . . . . . . . . . . . . . . Impact Corruptions . | . . . . . . . . . . . . . . . . Robots Melted . | . . . . . . . . . . . . . . . . Combat Hostiles . | . . . . . . . . . . . . . . . . Parts Melted 7 | . 3 . . . 4 . . . . . . . . . . Heat Transferred 3296 | . 1457 174 . . 1665 . . . . . . . . . . Parts Sabotaged . | . . . . . . . . . . . . . . . . Parts Stolen . | . . . . . . . . . . . . . . . . Parts Stripped . | . . . . . . . . . . . . . . . . Power Chain Reactions . | . . . . . . . . . . . . . . . . Alert | -11 -10 -10 -10 -9 -8 -7 -7 -6 -5 -5 -4 -3 -2 -1 -1 ------- Run | Yrd Mat Min Exi Min Mat Fac Low Zio Pro Fac Fac Res Res Acc Com Maximum Alert Level 1 | . . . . . . . . . . 1 . . . . . Low Security (%) 98 | 100 100 100 . 100 100 100 . . . 79 100 100 100 100 100 Level 1 1 | . . . . . . . . . . 20 . . . . . Level 2 . | . . . . . . . . . . . . . . . . Level 3 . | . . . . . . . . . . . . . . . . Level 4 . | . . . . . . . . . . . . . . . . Level 5 . | . . . . . . . . . . . . . . . . High Security . | . . . . . . . . . . . . . . . . Max Security . | . . . . . . . . . . . . . . . . Peak Influence 333 | . 67 25 . . 162 60 . . . 333 39 30 40 87 44 Initial 306 | . . . . . . 60 . . . 306 23 . 15 . 33 Average 35 | . 23 10 . . 56 7 . . . 163 8 6 13 13 14 Influence Increases 1976 | . 264 35 . . 610 82 . . 30 391 212 74 38 216 24 Destroy 0b10 Robot/C 320 | . 160 20 . . 140 . . . . . . . . . . Destroy 0b10 Robot/NC 130 | . 25 . . . 50 20 . . . 10 15 5 5 . . Destroy Leader 118 | . 46 . . . 64 4 . . . 2 . . 2 . . Successful Hack 235 | . 18 . . . 42 54 . . . 30 20 16 22 33 . Disable Machine 15 | . . . . . . . . . . . . . . . 15 Destroy Structure 123 | . . . . . 14 4 . . . 4 42 8 9 33 9 Advance Influence 300 | . . . . . . . . . . 300 . . . . . Partial Spotted 120 | . . . . . 30 . . . . 15 . 30 . 45 . Lose Combat Pursuer 615 | . 15 15 . . 270 . . . 30 30 135 15 . 105 . Influence Decreases 1976 | . 264 30 5 . 475 217 . . 20 352 260 46 67 163 77 Entered New Map 145 | . . . 5 . . 75 . . . 4 26 1 14 . 20 Time Decay 1570 | . 254 30 . . 434 142 . . 20 198 234 45 40 153 20 Lost Part 86 | . 10 . . . 29 . . . . . . . . 10 37 Purge Threat 175 | . . . . . 12 . . . . 150 . . 13 . . Squads Dispatched 25 | . 2 . . . 3 2 . . . 1 6 3 1 7 . Investigation 5 | . . . . . 1 1 . . . . 2 . . 1 . Extermination 10 | . . . . . . 1 . . . 1 3 1 . 4 . Reinforcement 10 | . 2 . . . 2 . . . . . 1 2 1 2 . Assault . | . . . . . . . . . . . . . . . . Garrison . | . . . . . . . . . . . . . . . . Intercept . | . . . . . . . . . . . . . . . . Searches Triggered . | . . . . . . . . . . . . . . . . Construction Impeded 1 | . . . . . 1 . . . . . . . . . . Haulers Reinforced . | . . . . . . . . . . . . . . . . Active Scanning Responses . | . . . . . . . . . . . . . . . . Cargo Convoy Interrupts . | . . . . . . . . . . . . . . . . Stealth | -11 -10 -10 -10 -9 -8 -7 -7 -6 -5 -5 -4 -3 -2 -1 -1 --------- Run | Yrd Mat Min Exi Min Mat Fac Low Zio Pro Fac Fac Res Res Acc Com Distress Signals 7 | . . . . . 3 . . . 1 . 1 . . 1 1 Communications Jammed 1 | . . . . . . . . . . . . . 1 . . Distress Signals 1 | . . . . . . . . . . . . . 1 . . Times Spotted 137 | . 19 2 . . 31 6 . . 7 6 11 8 4 11 32 Peak Tracking Total 52 | . 3 2 . . 10 2 . . 5 4 4 4 3 6 52 Tactical Retreats 21 | . 1 1 . . 7 . . . 1 1 7 1 . 2 . Traps | -11 -10 -10 -10 -9 -8 -7 -7 -6 -5 -5 -4 -3 -2 -1 -1 ------- Run | Yrd Mat Min Exi Min Mat Fac Low Zio Pro Fac Fac Res Res Acc Com Traps Triggered 13 | . 1 . . . 3 4 . . . . 3 1 . 1 . Indirectly . | . . . . . . . . . . . . . . . . Trap Hack Attempts . | . . . . . . . . . . . . . . . . Triggered . | . . . . . . . . . . . . . . . . Disarmed 1 | . . . . . . . . . . . 1 . . . . Reprogrammed . | . . . . . . . . . . . . . . . . Reused . | . . . . . . . . . . . . . . . . Traps Extracted . | . . . . . . . . . . . . . . . . Installed . | . . . . . . . . . . . . . . . . Triggered . | . . . . . . . . . . . . . . . . Machines | -11 -10 -10 -10 -9 -8 -7 -7 -6 -5 -5 -4 -3 -2 -1 -1 ---------- Run | Yrd Mat Min Exi Min Mat Fac Low Zio Pro Fac Fac Res Res Acc Com Machines Disabled 1 | . . . . . . . . . . . . . . . 1 Max in Single Turn 1 | . . . . . . . . . . . . . . . 1 Garrison Access 5 | . . . . . 1 1 . . . . 2 . . 1 . Machines Repaired . | . . . . . . . . . . . . . . . . Machines Dismantled . | . . . . . . . . . . . . . . . . Machines Sabotaged . | . . . . . . . . . . . . . . . . Overloaded Fab Kills . | . . . . . . . . . . . . . . . . Hacking | -11 -10 -10 -10 -9 -8 -7 -7 -6 -5 -5 -4 -3 -2 -1 -1 --------- Run | Yrd Mat Min Exi Min Mat Fac Low Zio Pro Fac Fac Res Res Acc Com Machines Accessed 69 | . 5 . 1 . 15 16 1 . . 4 10 3 3 9 2 Terminals 46 | . 4 . . . 10 8 . . . 4 4 3 3 8 2 Fabricators 4 | . . . . . . 2 . . . . 2 . . . . Repair Stations 1 | . . . . . . 1 . . . . . . . . . Recycling Units 6 | . 1 . . . 2 2 . . . . 1 . . . . Scanalyzers 4 | . . . . . 2 1 . . . . 1 . . . . Garrison Access 6 | . . . . . 1 2 . . . . 2 . . 1 . Total Hacks 259 | . 11 . 1 . 52 49 1 . . 18 52 24 19 29 3 Successful 165 | . 4 . 1 . 39 22 1 . . 9 39 18 13 17 2 Failed 93 | . 7 . . . 13 27 . . . 9 13 6 6 11 1 Catastrophic 10 | . . . . . 2 4 . . . 3 1 . . . . Database Lockouts 1 | . . . . . . . . . . . . . . 1 . Manual 76 | . . . 1 . 12 13 . . . 8 15 11 11 5 . Terminals 184 | . 9 . . . 26 26 . . . 18 33 24 19 26 3 Fabricators 8 | . . . . . . 4 . . . . 4 . . . . Repair Stations 7 | . . . . . . 7 . . . . . . . . . Recycling Units 11 | . 2 . . . 4 4 . . . . 1 . . . . Scanalyzers 30 | . . . . . 18 3 . . . . 9 . . . . Garrison Access 17 | . . . . . 4 5 . . . . 5 . . 3 . Terminal Hacks 108 | . 3 . 1 . 15 10 1 . . 9 24 16 13 14 2 Record 5 | . . . . . . . . . . . 1 1 . 3 . Part Schematic 3 | . . . . . 1 . . . . . 1 1 . . . Robot Analysis 1 | . . . . . . . . . . . 1 . . . . Prototype ID Bank 8 | . 1 . . . 1 2 . . . . 2 . 2 . . Open Door 6 | . . . . . . . 1 . . . . . . 4 1 Level Access Points 8 | . . . . . 1 1 . . . 1 1 2 1 1 . Branch Access Points 5 | . . . . . 1 1 . . . . . . 2 1 . Emergency Access Points 1 | . . . . . . . . . . . . 1 . . . Machine Index 2 | . . . . . . . . . . . . 1 . 1 . Terminal Index 7 | . . . . . . 1 . . . 2 1 1 1 1 . Fabricator Index 2 | . . . . . . . . . . 1 1 . . . . Repair Station Index 1 | . . . . . . . . . . . . . 1 . . Recycling Unit Index 1 | . . . . . . . . . . . . . 1 . . Scanalyzer Index 1 | . . . . . 1 . . . . . . . . . . Garrison Index 1 | . . . . . . . . . . . . . 1 . . Alert Level 4 | . . . . . 1 . . . . . 1 1 1 . . Unreport Threat 4 | . . . . . 1 1 . . . 1 . . 1 . . Locate Traps 7 | . 2 . . . . . . . . . 3 1 . 1 . Disarm Traps 2 | . . . . . . . . . . . 2 . . . . Dispatch Records 1 | . . . . . . . . . . . 1 . . . . Security Status 1 | . . . . . . . . . . 1 . . . . . Surveillance Status 1 | . . . . . . . . . . 1 . . . . . Patrol Status 1 | . . . . . 1 . . . . . . . . . . Transport Status 1 | . . . . . . . . . . . 1 . . . . Investigation Status 1 | . . . . . 1 . . . . . . . . . . Reinforcement Status 1 | . . . . . 1 . . . . . . . . . . Assault Status 1 | . . . . . . . . . . . . 1 . . . Recall Investigation 3 | . . . . . . 1 . . . . 2 . . . . Recall Extermination 7 | . . . . . . 1 . . . . 3 1 . 2 . Recall Reinforcements 3 | . . . . . . . . . . . 1 1 1 . . Recall Assault 3 | . . . . . . . . . . . 1 1 1 . . Hauler Manifests 2 | . . . . . 1 . . . . . . 1 . . . Registered Components 2 | . . . . . 1 . . . . 1 . . . . . Zone Layout 9 | . . . . . 3 2 . . . 1 1 2 . . . Proto ID Catalog 1 | . . . 1 . . . . . . . . . . . . Disengage Seal 1 | . . . . . . . . . . . . . . . 1 Fabricator Hacks 6 | . . . . . . 2 . . . . 4 . . . . Load Schematic 3 | . . . . . . 1 . . . . 2 . . . . Build 3 | . . . . . . 1 . . . . 2 . . . . Repair Station Hacks 6 | . . . . . . 6 . . . . . . . . . Scan Component 3 | . . . . . . 3 . . . . . . . . . Repair 3 | . . . . . . 3 . . . . . . . . . Recycling Unit Hacks 7 | . 1 . . . 3 2 . . . . 1 . . . . Report Inventory 5 | . . . . . 2 2 . . . . 1 . . . . Retrieve Components 2 | . 1 . . . 1 . . . . . . . . . . Scanalyzer 25 | . . . . . 18 1 . . . . 6 . . . . Insert Component 12 | . . . . . 8 1 . . . . 3 . . . . Analyze 13 | . . . . . 10 . . . . . 3 . . . . Garrison Access Hacks 5 | . . . . . 1 1 . . . . 2 . . 1 . Seal Access 5 | . . . . . 1 1 . . . . 2 . . 1 . Unauthorized Hacks 8 | . . . . . 2 . . . . . 2 2 . 2 . Terminals 2 | . . . . . . . . . . . . 2 . . . Track 1 | . . . . . . . . . . . . 1 . . . Assimilate 1 | . . . . . . . . . . . . 1 . . . Fabricators . | . . . . . . . . . . . . . . . . Repair Stations . | . . . . . . . . . . . . . . . . Recycling Units . | . . . . . . . . . . . . . . . . Scanalyzers . | . . . . . . . . . . . . . . . . Garrison Access 6 | . . . . . 2 . . . . . 2 . . 2 . Broadcast 3 | . . . . . 1 . . . . . 1 . . 1 . Intercept 3 | . . . . . 1 . . . . . 1 . . 1 . Data Cores Recovered 5 | . . . . . 1 2 . . . 1 1 . . . . Used 4 | . . . . . . 2 . . . 1 1 . . . . Hacking Detections 50 | . 5 . . . 10 14 . . . 4 6 3 2 6 . Full Trace Events 5 | . . . . . 1 1 . . . . 2 . . 1 . Feedback Events . | . . . . . . . . . . . . . . . . Feedback Blocked . | . . . . . . . . . . . . . . . . Robot Schematics Acquired 3 | . . . . . . . . 3 . . . . . . . Robots Built . | . . . . . . . . . . . . . . . . Authchips . | . . . . . . . . . . . . . . . . Time . | . . . . . . . . . . . . . . . . Total Robot Build Rating . | . . . . . . . . . . . . . . . . Part Schematics Acquired 30 | . . . . . 9 . . 16 . . 4 1 . . . Parts Built 2 | . . . . . . 1 . . . . 1 . . . . Authchips . | . . . . . . . . . . . . . . . . Time 340 | . . . . . . 36 . . . . 304 . . . . Total Part Build Rating 8 | . . . . . . 3 . . . . 5 . . . . Parts Repaired 3 | . . . . . . 3 . . . . . . . . . Time 108 | . . . . . . 108 . . . . . . . . . Parts Recycled . | . . . . . . . . . . . . . . . . Recycled Matter . | . . . . . . . . . . . . . . . . Retrieved Matter . | . . . . . . . . . . . . . . . . Retrieved Components 20 | . 10 . . . 10 . . . . . . . . . . Parts Scanalyzed 12 | . . . . . 8 1 . . . . 3 . . . . Part Schematics Acquired 11 | . . . . . 8 . . . . . 3 . . . . Parts Damaged . | . . . . . . . . . . . . . . . . Bothacking | -11 -10 -10 -10 -9 -8 -7 -7 -6 -5 -5 -4 -3 -2 -1 -1 ------------ Run | Yrd Mat Min Exi Min Mat Fac Low Zio Pro Fac Fac Res Res Acc Com Used RIF Installer . | . . . . . . . . . . . . . . . . Robots Hacked 7 | . . . 7 . . . . . . . . . . . . Non-combat 3 | . . . 3 . . . . . . . . . . . . Combat 4 | . . . 4 . . . . . . . . . . . . Robot Hacks Applied 24 | . . . 24 . . . . . . . . . . . . parse_system 24 | . . . 24 . . . . . . . . . . . . Relay Couplers Released . | . . . . . . . . . . . . . . . . Fabnet Peak Effective % . | . . . . . . . . . . . . . . . . Robots Rewired . | . . . . . . . . . . . . . . . . Allies Hacked . | . . . . . . . . . . . . . . . . Hacks Repelled . | . . . . . . . . . . . . . . . . Allies | -11 -10 -10 -10 -9 -8 -7 -7 -6 -5 -5 -4 -3 -2 -1 -1 -------- Run | Yrd Mat Min Exi Min Mat Fac Low Zio Pro Fac Fac Res Res Acc Com Total Allies . | . . . . . . . . . . . . . . . . Largest Group . | . . . . . . . . . . . . . . . . Highest-Rated Group . | . . . . . . . . . . . . . . . . Highest-Rated Ally . | . . . . . . . . . . . . . . . . Total Orders . | . . . . . . . . . . . . . . . . Ally Attacks . | . . . . . . . . . . . . . . . . Total Damage . | . . . . . . . . . . . . . . . . Kills . | . . . . . . . . . . . . . . . . Allies Corrupted . | . . . . . . . . . . . . . . . . Allies Melted . | . . . . . . . . . . . . . . . . Intel | -11 -10 -10 -10 -9 -8 -7 -7 -6 -5 -5 -4 -3 -2 -1 -1 ------- Run | Yrd Mat Min Exi Min Mat Fac Low Zio Pro Fac Fac Res Res Acc Com Active Infowar (turns) 6758 | . 661 97 772 32 1527 723 71 396 120 415 887 278 140 563 76 Sensors 1807 | . 661 97 772 32 245 . . . . . . . . . . Structural 4963 | . . . . . 1306 723 71 396 120 415 887 278 140 563 64 Cloaking 961 | . . . . . . . . . . . . 211 140 563 47 Jamming 376 | . . . . . . . . . . . . 17 139 144 76 Robot Analysis Total 1 | . . . . . . . . . . . 1 . . . . Derelict Logs Recovered 3 | . . . . . . . 2 . 1 . . . . . . Drone Launches . | . . . . . . . . . . . . . . . . Drone Recoveries . | . . . . . . . . . . . . . . . . Exploration | -11 -10 -10 -10 -9 -8 -7 -7 -6 -5 -5 -4 -3 -2 -1 -1 ------------- Run | Yrd Mat Min Exi Min Mat Fac Low Zio Pro Fac Fac Res Res Acc Com Turns Passed 7001 | 64 796 97 772 32 1528 723 71 396 120 415 887 278 140 563 119 Spaces Moved 11107 | 42 506 57 608 24 1450 1511 292 1153 455 433 2035 645 154 1480 262 Core 100 | 11 . . . . . . . . . . . . . . 89 Treads . | . . . . . . . . . . . . . . . . Legs 1693 | 31 506 57 608 24 467 . . . . . . . . . . Wheels . | . . . . . . . . . . . . . . . . Hover . | . . . . . . . . . . . . . . . . Flight 9314 | . . . . . 983 1511 292 1153 455 433 2035 645 154 1480 173 Fastest Speed 12 | 50 120 120 120 120 26 23 23 23 23 26 24 15 24 12 23 Average Speed 38 | 117 120 120 120 120 56 23 23 23 23 26 25 24 24 20 35 Slowest Speed 190 | 190 120 120 120 120 190 23 23 23 26 26 26 26 24 26 150 Overloaded Moves 679 | . . . . . . . . . . . . 96 . 455 128 Propulsion Burnouts 2 | . . . . . . . . . . . . . . 2 . Robots Hopped 35 | . . . . . 15 1 . 1 . 3 4 4 . 7 . Potential Cave-ins . | . . . . . . . . . . . . . . . . Cave-ins Triggered 1 | . . . . . 1 . . . . . . . . . . Exploration Rate (%) 40 | 3 72 15 91 21 80 37 35 89 75 14 37 18 5 37 13 Regions Visited 15 Branch Regions 7 Pre-discovered Areas 2 | . . . . . . . 1 1 . . . . . . . Known Exits Taken 7 | . . . . . 1 1 . . . 1 1 1 1 1 . Unknown Exits Taken 8 | 1 1 1 1 1 . . 1 1 1 . . . . . . Scrap Searched 8 | . . . . . . . 5 2 1 . . . . . . Spaces Dug 55 | . . . . . 7 4 . . . 2 21 4 3 11 3 Terrain Destroyed 62 | . . . . . 14 4 . . . 2 21 4 3 11 3 Melee 54 | . . . . . 6 4 . . . 2 21 4 3 11 3 Projectile 8 | . . . . . 8 . . . . . . . . . . AOE . | . . . . . . . . . . . . . . . . Terrain Rammed . | . . . . . . . . . . . . . . . . Walls Destroyed . | . . . . . . . . . . . . . . . . Machines Disabled . | . . . . . . . . . . . . . . . . Actions | -11 -10 -10 -10 -9 -8 -7 -7 -6 -5 -5 -4 -3 -2 -1 -1 --------- Run | Yrd Mat Min Exi Min Mat Fac Low Zio Pro Fac Fac Res Res Acc Com Total 13367 | 56 607 70 637 27 2032 1861 295 1280 466 716 2339 740 248 1712 281 Wait 1748 | . 34 3 . 4 421 268 2 128 12 264 249 68 85 209 1 Move 11024 | 41 505 56 607 23 1421 1508 291 1150 454 426 2026 636 153 1465 262 Hop 33 | . . . . . 13 1 . 1 . 3 4 4 . 7 . Pick Up 97 | 9 12 1 1 . 30 14 1 . . 4 9 6 1 8 1 Fast Attach 19 | . . . . . 9 3 . . . 3 2 . . 1 1 Attach 50 | 6 3 1 . . 16 6 . . . 2 2 3 3 5 3 Detach 7 | . . . . . 4 . . . . . . . . 1 2 Swap 48 | . 2 . 2 . 20 2 . . . 2 5 11 1 2 1 Drop 78 | . 2 . 1 . 36 10 1 . . 4 11 4 1 3 5 Fire 100 | . 49 9 . . 42 . . . . . . . . . . Melee 124 | . . . 26 . 20 13 . 1 . 8 28 8 4 11 5 Ram . | . . . . . . . . . . . . . . . . Kick . | . . . . . . . . . . . . . . . . Crush . | . . . . . . . . . . . . . . . . Escape Stasis 39 | . . . . . . 36 . . . . 3 . . . . Rewire . | . . . . . . . . . . . . . . . . Trap . | . . . . . . . . . . . . . . . . Miscellaneous . | . . . . . . . . . . . . . . . . Route ------- -11/Scrapyard -10/Materials (discovered 5 exits: [*Mat x2] / [*Min x2] / [*Sub]) -10/Mines (discovered 2 exits: *Exi / [*Sub]) -10/Exiles -9/Mines -8/Materials (discovered 3 exits: *Fac x3) -7/Factory (discovered 6 exits: Fac x4 / *Low x2) -7/Lower Caves -6/Zion -5/Proximity Caves -5/Factory (discovered 4 exits: *Fac x4) -4/Factory (discovered 6 exits: *Res x4 / [*Upp] / Ext) -3/Research (discovered 3 exits: *Res x3) -2/Research (discovered 5 exits: *Acc x3 / Qua x2) -1/Access (discovered 2 exits: *Sur / *Com) -1/Command History --------- Turn | Location | Event 3 | -11/Scrapyard | Discovered new exit (range 15) 65 | -11/Scrapyard | Entered Materials 205 | -10/Materials | Discovered new exit (range 6) 298 | -10/Materials | Discovered new exit (range 11) 316 | -10/Materials | Build established: Mutant 350 | -10/Materials | Discovered new exit (range 15) 574 | -10/Materials | Discovered new exit (range 8) 767 | -10/Materials | Discovered new exit (range 16) 861 | -10/Materials | Entered Mines 904 | -10/Mines | Discovered new exit (range 7) 947 | -10/Mines | Found a hidden stash of uninstalled traps 953 | -10/Mines | Deemed a non-threat by the Exiles lab entrance 953 | -10/Mines | Discovered new exit (range 5) 958 | -10/Mines | Entered Exiles 988 | -10/Exiles | Met 8R-AWN 1009 | -10/Exiles | Met EX-HEX 1041 | -10/Exiles | Met EX-BIN 1106 | -10/Exiles | Aligned with FarCom system 1107 | -10/Exiles | Given EX-Vault access code 1135 | -10/Exiles | Opened EX-Vault 1144 | -10/Exiles | Found Chronowheel 1169 | -10/Exiles | Warned to stay clear of 0b10 Research branches 1278 | -10/Exiles | Met EX-DEC 1325 | -10/Exiles | Visited The Gauntlet 1717 | -10/Exiles | Discovered new exit (range 12) 1730 | -10/Exiles | Left Exiles lab with Chronowheel 1730 | -10/Exiles | Entered Mines 1747 | -9/Mines | Discovered new exit (range 9) 1762 | -9/Mines | Entered Materials 1762 | -8/Materials | Evolved 4 slots: Propulsion x2, Utility x2 2312 | -8/Materials | Build established: Scavenger-Mutant 2914 | -8/Materials | Identified exit to Factory 2977 | -8/Materials | Build established: Hacker-Sprinter 3194 | -8/Materials | Crushed by falling debris 3290 | -8/Materials | Entered Factory 3290 | -7/Factory | Evolved 2 slots: Propulsion x1, Utility x1 3380 | -7/Factory | Repaired Sml. Storage Unit 3424 | -7/Factory | Repaired Surge Thruster 3470 | -7/Factory | Repaired Greatsword 3724 | -7/Factory | Fabricated System Shield (x1) 3866 | -7/Factory | Discovered new exit (range 13) 3867 | -7/Factory | Identified exit to Lower Caves 3867 | -7/Factory | Identified exit to Factory 4013 | -7/Factory | Entered Lower Caves 4081 | -7/Lower Caves | A Derelict revealed a hidden shortcut to a safe place 4084 | -7/Lower Caves | Entered Zion 4138 | -6/Zion | Given the Hacking Drone Bay 4162 | -6/Zion | Discovered new exit (range 10) 4199 | -6/Zion | Loaded intel: 4 derelict terminal locations 4214 | -6/Zion | Given A8's code to call for help 4435 | -6/Zion | Rebuked by Imprinter 4480 | -6/Zion | Entered Proximity Caves 4482 | -5/Proximity Caves | Spotter reported a threat 4484 | -5/Proximity Caves | Spotter reported a threat 4589 | -5/Proximity Caves | Learned Factory interactive machine intel 4598 | -5/Proximity Caves | Discovered new exit (range 10) 4600 | -5/Proximity Caves | Entered Factory 4600 | -5/Factory | Evolved 4 slots: Propulsion x1, Utility x3 4601 | -5/Factory | Loaded intel: 53 interactive machine locations 4687 | -5/Factory | Identified exit to Factory 4927 | -5/Factory | Build established: Wizard-Sprinter 5015 | -5/Factory | Entered another Factory area 5015 | -4/Factory | Evolved 2 slots: Utility x2 5016 | -4/Factory | Identified exit to Extension 5097 | -4/Factory | Identified exit to Research 5472 | -4/Factory | Discovered new exit (range 10) 5555 | -4/Factory | Fabricated Cld. Cesium-ion Thruster? 5902 | -4/Factory | Entered Research 5902 | -3/Research | Evolved 2 slots: Power x1, Utility x1 6011 | -3/Research | Found Prototype Device 6012 | -3/Research | Identified Adv. Kinecellerator 6067 | -3/Research | Identified exit to Research 6164 | -3/Research | Spotted B-86 Titan 6180 | -3/Research | Entered another Research area 6180 | -2/Research | Evolved 2 slots: Utility x2 6250 | -2/Research | Identified exit to Access 6250 | -2/Research | Identified exit to Quarantine 6306 | -2/Research | Found Prototype Processor 6307 | -2/Research | Identified Spectral Analyzer 6320 | -2/Research | Entered Access 6320 | -1/Access | Evolved 2 slots: Propulsion x1, Utility x1 6532 | -1/Access | Identified exit to Surface 6711 | -1/Access | Identified exit to Command 6769 | -1/Access | Central database locked down 6815 | -1/Access | Spotted B-99 Colossus 6883 | -1/Access | Entered Command 6894 | -1/Command | Disengaged cave seal 6899 | -1/Command | Spotted M Guard 6899 | -1/Command | Spotted M Guard 6907 | -1/Command | Spotted Combat Programmer 6907 | -1/Command | Spotted Combat Programmer 6914 | -1/Command | Met MAIN.C 6916 | -1/Command | 0b10 Conduit disabled 6946 | -1/Command | System corruption reached 10% 6955 | -1/Command | Core integrity fell below 50% 6975 | -1/Command | Core integrity fell below 20% 7002 | -1/Command | Destroyed by H-88 Terminator with KE Penetrator Last Messages --------------- 06969_ Penetrated by EMDS Slug. 06974_ System Shield destroyed. 06977_ System corrupted: Energy discharge (-10). 06983_ EMDS Slug penetrates Wall. 06985_ Penetrated by EMDS Slug. 06987_ EMDS Slug penetrates Wall. 06989_ Penetrated by EMDS Slug. 06991_ EMDS Slug penetrates Wall. 06992_ Penetrated by EMDS Slug. 07002_ Greatsword destroyed. 07002_ C-30 ARC springs to life. 07002_ C-30 ARC bursts open, deploying its payload. 07002_ S-43 Plague unfolds itself. 07002_ X-87 Electro springs to life. 07002_ C-30 ARC springs to life. 07002_ C-30 ARC bursts open, deploying its payload. 07002_ H-88 Terminator unfolds itself. 07002_ Slug penetrates Wall. Map ----- +----------------------------------------------------+ | ?????????????????????????????????????????????????? | | ?????????????????????????????????????????????????? | | ?????????????????????????????????????????????????? | | ?????????????????????????????????????????????????? | | ?????????????????????????????????????????????????? | | ?????????????????????????????????????????????????? | | ?????????????????????????????????????????????????? | | ?????????????????????????????????????????????????? | | ?????????????????????????????????????????????????? | | ?????????????????????????????????????????????????? | | ????????????????????????##???????????????????????? | | ???????????????????????? ???????????????????????? | | ???????????????????????? ???????????????????????? | | ???????????????????????# ???????????????????????? | | ???????????????????????# ???????????????????????? | | ???????????????????????# ???????????????????????? | | ???????????????????????# ???????????????????????? | | ??????????????????????## ##?????????????????????? | | ??????????????????????#xeCC#?????????????????????? | | ??????????????????????#xeCC#?????????????????????? | | ???????????????????????xeCC#?????????????????????? | | ???????????????????????eeCC#?????????????????????? | | ????????????????????????xCC??????????????????????? | | ????????????????????????e%h??????????????????????? | | ????????????????????????#s#??###??##?????????????? | | ????????????????????????#@##?# #?? #?????????????? | | ????????????????????????#ss#?# #?? #?????????????? | | ????????????????????????#p#### ### #### #????????? | | ????????????????????????#h p #????????? | | ????????????????????????#########""######????????? | | ???????????????????????????????# #?????????????? | | ???????????????????????????????# #?????????????? | | ???????????????????????????????# #?????????????? | | ???????????????????????????????# #?????????????? | | ???????????????????????????????# #?????????????? | | ???????????????????????????????# #?????????????? | | ???????????????????????????????# #?????????????? | | ???????????????????????????????# #?????????????? | | ???????????????????????????????# #?????????????? | | ???????????????????????????????# #?????????????? | | ???????????????????????????????# #?????????????? | | #######????????????????????????# #?????????????? | | #????????????????????????# #?????????????? | | #????????????????????????# #?????????????? | | #######################??# #?????????????? | | / #??# #?????????????? | | / #??# #?????????????? | | % / #??# #?????????????? | | ################### #??# #?????????????? | | #?????????????????# #### #?????????????? | +----------------------------------------------------+ Best States ------------- Heat Dissipation 83 Energy Generation 49 Energy Capacity 265 Matter Stores 300 Matter Capacity 300 Sight Range 16 Robot Scan Range 14 Terrain Scan Density 10 Jamming Range 14 Cloak Strength 3 Power Amplification 30 Armor Coverage 225 Evasion (%) 76 Offensive Hacking 60 Defensive Hacking 30 Item Schematics ----------------- Hacking Suite | -8/Materials | Scanalyzed VTOL Module | -8/Materials | Scanalyzed Imp. Light Armor Plating | -8/Materials | Scanalyzed System Shield | -8/Materials | Hacked Surge Thruster | -8/Materials | Scanalyzed Greatsword | -8/Materials | Scanalyzed Lgt. Deuterium Engine | -8/Materials | Scanalyzed Imp. Grenade Launcher | -8/Materials | Scanalyzed Med. Storage Unit | -8/Materials | Scanalyzed Imp. KE Penetrator | -6/Zion | Archive Hvy. Phase Cannon | -6/Zion | Archive Proton Cannon | -6/Zion | Archive Coil Gun | -6/Zion | Archive Arm. Medium Treads | -6/Zion | Archive Imp. Launcher Guidance Computer | -6/Zion | Archive Hpw. Shock Rifle | -6/Zion | Archive Phase Gun | -6/Zion | Archive Adv. Cryofiber Web | -6/Zion | Archive Lgt. Fission Core | -6/Zion | Archive Disruptor Cannon | -6/Zion | Archive Thermal Shield | -6/Zion | Archive Variable Charge Gun | -6/Zion | Archive Adv. Sensor Array | -6/Zion | Archive Imp. Arc Projector | -6/Zion | Archive Remote Shield | -6/Zion | Archive Imp. Transmission Jammer | -4/Factory | Scanalyzed Lgt. Neutrino Core | -4/Factory | Scanalyzed Adv. Weight Redist. System | -4/Factory | Scanalyzed Cld. Cesium-ion Thruster | -4/Factory | Hacked Cld. Antimatter Reactor | -3/Research | Hacked Robot Schematics ------------------ A-15 Conveyor | -6/Zion | Archive R-10 Processor | -6/Zion | Archive T-07 Excavator | -6/Zion | Archive Fabricated ------------ System Shield | x1 | -7/Factory Cld. Cesium-ion Thruster | x1 | -4/Factory Repaired ---------- Sml. Storage Unit | 34% | -7/Factory Surge Thruster | 37% | -7/Factory Greatsword | 57% | -7/Factory Alien Tech Used ----------------- None Achievements -------------- Meet Your Maker Origins Challenges ------------ None Game ------ Seed ImprinterCoilFlail Manual? 0 Play Time 02:19:09 Cumulative 53.4 hours Start 2025.08.14 @ 10:52:31 End 2025.08.14 @ 13:16:45 Sessions 1 Manual Loads 0 Difficulty Rogue Special Mode None Game No. 38 Rogue 38 Adventurer 0 Explorer 0 Win Type - Total 1 Types 1/0/0/0/0/0/0/0/0/0 Lore% 49 Gallery% 41 Achievement% 35 Wizard Run 0 Options --------- Layout 1 ASCII 0 Keyboard 0 Movement Mouse Keybinds 0 Fullscreen 1 Font 24/Smallcaps Map View 50x35 Zoom Use 0% Tactical HUD 1 Map Filters NONE Filters NONE Steam 1 RUN: f5a7c5a5-300d-4a83-ad6c-b58ee0ca914e